bitfinex/quotes_SOLUSD_20251030
["timestamp","ask_amount","ask_price","bid_price","bid_amount"]
[1761819140774,7.2215239,191.96,191.9,12.63230384]
[1761819140968,7.2215239,191.96,191.92,0.67]
[1761819141901,7.2215239,191.96,191.92,5.8804585]
[1761819142212,7.2215239,191.93,191.9,0.2]
[1761819142678,5.20921152,191.97,191.9,5.41101007]
[1761819142884,20.592,191.96,191.91,7.8915239]
[1761819143188,20.592,191.96,191.92,7.2215239]
[1761819143383,20.592,191.96,191.92,7.8915239]
[1761819143587,20.592,191.96,191.93,0.67]
[1761819144099,12.4307045,191.97,191.93,0.67]
[1761819144283,7.2215239,191.94,191.9,0.2]
[1761819144478,7.2215239,191.93,191.9,0.2]
[1761819144996,7.2215239,191.93,191.9,6.08104072]
[1761819145504,7.2215239,191.94,191.9,6.08104072]
[1761819146202,20.592,191.91,191.9,0.2]
[1761819147780,33.69429978,191.91,191.9,0.2]
[1761819147985,20.592,191.91,191.9,0.2]
[1761819148703,25.80277588,191.91,191.9,0.2]
[1761819148882,20.592,191.91,191.9,0.2]
[1761819149285,25.80277588,191.91,191.9,0.2]
[1761819149874,103.4,191.93,191.9,0.89]
[1761819150098,103.4,191.93,191.9,0.2]
[1761819150396,107.33454208,191.93,191.9,0.2]
[1761819150605,3.26454208,191.91,191.9,0.2]
[1761819150980,3.93454208,191.91,191.9,0.2]
[1761819151788,9.14531796,191.91,191.9,0.2]
[1761819153187,103.4,191.93,191.9,0.2]
[1761819153388,106.66454208,191.93,191.9,0.2]
[1761819153587,3.26454208,191.92,191.9,0.2]
[1761819153807,8.47512086,191.92,191.9,0.2]
[1761819154305,3.26454208,191.91,191.9,0.2]
[1761819156721,29.06731796,191.91,191.9,0.2]
[1761819156921,20.592,191.91,191.9,0.2]
[1761819159215,23.85654208,191.91,191.9,0.2]
[1761819160400,29.06731796,191.91,191.9,0.2]
[1761819162416,25.80277588,191.91,191.9,0.2]
[1761819162709,29.06731796,191.91,191.9,0.2]
[1761819163023,4.97100419,191.99,191.9,4.15454208]
[1761819163189,3.26454208,191.98,191.93,3.26454208]
[1761819163396,3.26454208,191.98,191.92,3.26454208]
[1761819163615,3.26454208,191.97,191.92,3.26454208]
[1761819163824,3.26454208,191.97,191.92,0.69]
[1761819164023,3.26454208,191.97,191.93,0.69]
[1761819164616,3.26454208,191.97,191.93,5.90015968]
[1761819165118,3.26454208,191.97,191.94,0.69]
[1761819165904,3.44352829,191.99,191.95,3.26454208]
[1761819166104,3.44352829,192.0,191.95,3.26454208]
[1761819166313,3.44352829,192.0,191.96,0.69]
[1761819166623,3.44352829,192.0,191.96,5.8993306]
[1761819166916,20.592,192.01,191.97,3.26454208]
[1761819167094,107.77884044,192.05,191.97,3.95454208]
[1761819167095,3.26454208,192.03,191.97,3.95454208]
[1761819167287,3.44781829,192.02,191.98,0.69]
[1761819168289,2.08690712,192.02,191.96,2.08690712]
[1761819168493,5.20833333,192.0,191.96,0.69]
[1761819168793,2.08690712,191.99,191.95,5.89967759]
[1761819169010,2.08690712,191.99,191.96,0.69]
[1761819170217,2.08690712,192.01,191.96,5.89939776]
[1761819170422,2.08690712,192.0,191.97,0.69]
[1761819170803,2.08690712,192.01,191.97,0.69]
[1761819171203,2.08690712,192.0,191.97,0.69]
[1761819172520,2.08690712,192.01,191.97,5.89897774]
[1761819173434,2.08690712,192.01,191.98,0.69]
[1761819174498,7.29498034,192.01,191.98,0.69]
[1761819174704,2.08690712,192.0,191.96,0.69]
[1761819175229,2.08690712,191.98,191.94,5.89992932]
[1761819175423,2.08690712,191.98,191.92,22.67890712]
[1761819175625,2.08690712,191.93,191.9,0.2]
[1761819175808,20.592,191.96,191.9,0.2]
[1761819176004,2.08690712,191.91,191.9,0.2]
[1761819176530,7.967683,191.91,191.9,0.2]
[1761819177409,23.34890712,191.91,191.9,0.2]
[1761819177618,28.559683,191.91,191.9,0.2]
[1761819180339,7.967683,191.91,191.9,0.2]
[1761819180543,28.559683,191.91,191.9,0.2]
[1761819185549,19.84341781,191.91,191.82,0.67]
[1761819185711,19.84341781,191.91,191.79,5.21382633]
[1761819185712,2.08690712,191.84,191.8,0.67]
[1761819185917,2.08690712,191.83,191.8,0.67]
[1761819186116,2.08690712,191.82,191.8,0.67]
[1761819187042,0.66,191.85,191.8,5.88367393]
[1761819187220,5.21219573,191.86,191.8,5.88367393]
[1761819187421,5.87219573,191.86,191.8,5.88367393]
[1761819187835,0.66,191.86,191.8,5.88367393]
[1761819188033,22.67890712,191.87,191.81,2.75690712]
[1761819188441,20.592,191.87,191.82,0.67]
[1761819188618,2.08690712,191.87,191.82,0.67]
[1761819188820,2.08690712,191.87,191.83,5.21294896]
[1761819189238,2.08690712,191.84,191.8,0.67]
[1761819190243,2.08690712,191.84,191.81,5.21349251]
[1761819190539,2.08690712,191.85,191.81,5.21349251]
[1761819190732,2.08690712,191.85,191.81,5.88349251]
[1761819191619,2.08690712,191.84,191.79,5.21392491]
[1761819191824,2.08690712,191.84,191.81,0.67]
[1761819192243,2.08690712,191.85,191.81,0.67]
[1761819193441,2.08690712,191.84,191.81,5.88333237]
[1761819194449,2.08690712,191.85,191.81,5.88333237]
[1761819195825,7.29932928,191.85,191.79,5.21403618]
[1761819196026,2.74690712,191.84,191.79,7.3009433]
[1761819196340,2.08690712,191.84,191.8,0.72]
[1761819197348,2.08690712,191.84,191.8,5.93356966]
[1761819197735,137.02159871,191.88,191.78,0.72]
[1761819197736,2.08690712,191.82,191.78,0.72]
[1761819198124,2.74690712,191.82,191.78,5.21430679]
[1761819198324,103.4,191.86,191.76,0.72]
[1761819198325,2.08690712,191.79,191.76,0.72]
[1761819198525,0.66,191.81,191.76,0.72]
[1761819198845,2.08690712,191.79,191.76,0.72]
[1761819199424,20.592,191.83,191.76,5.9346968]
[1761819199633,2.08690712,191.8,191.76,5.9346968]
[1761819199835,30.38082769,191.76,191.75,0.2]
[1761819200146,22.67890712,191.76,191.75,0.2]
[1761819200347,23.33890712,191.76,191.75,0.2]
[1761819200857,2.08690712,191.76,191.75,0.2]
[1761819201151,20.592,191.77,191.75,0.2]
[1761819201329,22.67890712,191.77,191.75,0.2]
[1761819201525,20.592,191.77,191.75,0.2]
[1761819201738,22.67890712,191.78,191.75,0.2]
[1761819201944,23.33890712,191.78,191.75,0.2]
[1761819202628,20.592,191.77,191.75,0.2]
[1761819203233,20.592,191.77,191.75,5.4149994]
[1761819203433,20.592,191.77,191.76,0.72]
[1761819203739,20.592,191.77,191.75,6.1349994]
[1761819203938,22.67890712,191.78,191.75,6.1349994]
[1761819204541,22.67890712,191.78,191.75,5.4149994]
[1761819204730,20.592,191.77,191.75,5.4149994]
[1761819206031,22.67890712,191.78,191.75,5.4149994]
[1761819206630,22.67890712,191.78,191.75,6.1349994]
[1761819206831,20.592,191.78,191.76,0.72]
[1761819207027,103.4,191.81,191.76,0.72]
[1761819207234,9.78882769,191.85,191.78,2.08690712]
[1761819207455,2.08690712,191.84,191.78,2.08690712]
[1761819207734,20.592,191.82,191.78,2.78690712]
[1761819207951,2.08690712,191.85,191.79,8.0009433]
[1761819208140,20.592,191.84,191.79,8.0009433]
[1761819208471,2.79690712,191.87,191.81,2.08690712]
[1761819208659,13.20354528,191.9,191.82,2.78690712]
[1761819208871,13.20354528,191.9,191.84,2.08690712]
[1761819208872,2.79690712,191.9,191.84,2.08690712]
[1761819209076,3.41521825,191.95,191.87,2.08690712]
[1761819209365,2.08690712,191.93,191.87,2.08690712]
[1761819209562,2.08690712,191.93,191.87,2.78690712]
[1761819209747,2.08690712,191.92,191.87,2.78690712]
[1761819210151,2.08690712,191.92,191.88,5.91159057]
[1761819210364,2.08690712,191.93,191.88,0.7]
[1761819210548,22.67890712,191.91,191.86,2.08690712]
[1761819210736,22.67890712,191.91,191.87,0.7]
[1761819211137,22.67890712,191.91,191.83,13.03190364]
[1761819211138,2.08690712,191.88,191.84,0.7]
[1761819211429,2.08690712,191.89,191.84,2.78690712]
[1761819211635,0.71,191.9,191.8,5.21376433]
[1761819211636,2.08690712,191.87,191.8,5.21376433]
[1761819211859,2.08690712,191.86,191.81,2.78690712]
[1761819212060,20.592,191.89,191.85,2.08690712]
[1761819212267,20.592,191.9,191.86,2.08690712]
[1761819212775,20.592,191.9,191.87,0.7]
[1761819213078,20.592,191.9,191.86,2.08690712]
[1761819213079,22.67890712,191.9,191.86,0.7]
[1761819213272,20.592,191.9,191.86,0.7]
[1761819214254,20.592,191.87,191.82,5.21317328]
[1761819214563,20.592,191.87,191.83,2.78690712]
[1761819214939,22.67890712,191.87,191.84,0.7]
[1761819215371,22.67890712,191.87,191.82,8.0000804]
[1761819215664,20.592,191.87,191.83,2.78690712]
[1761819216058,20.592,191.87,191.84,0.7]
[1761819216570,20.592,191.87,191.84,7.99935947]
[1761819216973,7.29824943,191.89,191.85,0.7]
[1761819219051,0.71,191.94,191.87,2.08690712]
[1761819219272,2.08690712,191.92,191.87,2.08690712]
[1761819219469,22.67890712,191.92,191.88,0.7]
[1761819219776,2.08690712,191.89,191.85,0.7]
[1761819220161,2.08690712,191.87,191.83,5.91292901]
[1761819220359,2.08690712,191.87,191.83,0.7]
[1761819220577,2.08690712,191.87,191.83,5.91293212]
[1761819221171,8.00856194,191.88,191.83,5.91293212]
[1761819221571,8.00856194,191.88,191.83,0.7]
[1761819222868,2.08690712,191.86,191.81,0.7]
[1761819223063,2.79690712,191.87,191.81,2.78690712]
[1761819223489,2.08690712,191.86,191.81,8.00039963]
[1761819223690,2.08690712,191.85,191.81,5.91349251]
[1761819223977,2.08690712,191.86,191.81,5.91349251]
[1761819224567,2.08690712,191.86,191.82,0.7]
[1761819225283,2.08690712,191.87,191.82,5.91315029]
[1761819225781,27.88968645,191.91,191.85,2.08690712]
[1761819226078,2.08690712,191.91,191.86,2.08690712]
[1761819226457,2.08690712,191.91,191.87,0.7]
[1761819226662,25.80255676,191.92,191.87,0.7]
[1761819226869,7.29772274,191.91,191.87,0.7]
[1761819227476,2.08690712,191.9,191.87,0.7]
[1761819228082,2.08690712,191.9,191.85,7.99924367]
[1761819228376,20.592,191.9,191.86,0.7]
[1761819229271,25.80309693,191.9,191.86,0.7]
[1761819229453,3.26475142,191.89,191.84,3.26475142]
[1761819229657,3.26475142,191.89,191.83,3.26475142]
[1761819229973,3.26475142,191.89,191.84,3.26475142]
[1761819230277,29.06784835,191.9,191.84,3.26475142]
[1761819230478,29.06784835,191.9,191.85,0.7]
[1761819231072,8.47584835,191.9,191.85,0.7]
[1761819232686,3.26475142,191.88,191.82,3.96475142]
[1761819232880,3.26475142,191.87,191.82,3.96475142]
[1761819233287,3.26475142,191.87,191.83,0.7]
[1761819233989,8.47668052,191.87,191.83,0.7]
[1761819235099,9.18668052,191.87,191.81,9.17817734]
[1761819235261,3.26475142,191.86,191.81,5.91342592]
[1761819235777,3.26475142,191.86,191.82,0.7]
[1761819236684,3.97475142,191.86,191.8,3.96475142]
[1761819237076,3.97475142,191.86,191.81,0.7]
[1761819237471,9.18697675,191.86,191.81,5.91346912]
[1761819237870,9.18697675,191.86,191.82,0.71]
[1761819238289,3.26475142,191.87,191.82,3.97475142]
[1761819238586,5.89182478,191.88,191.82,3.97475142]
[1761819238791,20.592,191.88,191.84,3.26475142]
[1761819238991,3.26475142,191.9,191.84,3.26475142]
[1761819239294,3.26475142,191.9,191.85,0.71]
[1761819239670,9.15579945,191.9,191.85,0.71]
[1761819239900,0.68,191.9,191.85,3.97475142]
[1761819240093,3.94475142,191.9,191.85,3.97475142]
[1761819240296,20.592,191.91,191.86,0.71]
[1761819240469,3.26475142,191.9,191.86,0.71]
[1761819240985,8.47586113,191.9,191.86,0.71]
[1761819242305,0.68,191.89,191.85,5.21240028]
[1761819242483,3.94475142,191.89,191.85,5.21240028]
[1761819242684,9.15616473,191.89,191.85,5.21240028]
[1761819242997,8.47616473,191.89,191.85,5.92240028]
[1761819243378,9.15616473,191.89,191.84,5.21260012]
[1761819243580,9.15616473,191.89,191.84,9.18735154]
[1761819243781,9.15616473,191.89,191.85,0.71]
[1761819243998,8.47616473,191.89,191.85,0.71]
[1761819244801,0.68,191.96,191.87,3.26475142]
[1761819244991,3.43661214,192.0,191.92,3.26475142]
[1761819245194,3.94475142,192.0,191.93,0.71]
[1761819245393,3.26475142,191.99,191.94,3.26475142]
[1761819245705,20.592,191.98,191.94,3.26475142]
[1761819245892,20.592,191.98,191.95,0.71]
[1761819246098,3.26475142,191.99,191.95,0.71]
[1761819246475,3.43747061,192.02,191.97,3.26475142]
[1761819246680,20.592,192.0,191.96,3.26475142]
[1761819246880,20.592,192.0,191.96,3.97475142]
[1761819247105,20.592,192.0,191.97,0.71]
[1761819247480,3.26475142,191.99,191.94,3.97475142]
[1761819247680,3.26475142,191.98,191.94,0.71]
[1761819247899,3.26475142,191.97,191.94,0.71]
[1761819248884,3.26475142,191.96,191.92,5.21029048]
[1761819249208,3.26475142,191.96,191.89,33.6202678]
[1761819249209,3.26475142,191.93,191.89,0.71]
[1761819250090,3.26475142,191.92,191.89,0.71]
[1761819250397,3.26475142,191.9,191.86,0.71]
[1761819250600,3.26475142,191.89,191.86,0.71]
[1761819251600,0.68,191.93,191.83,5.21270957]
[1761819251601,3.26475142,191.88,191.83,5.21270957]
[1761819251779,3.26475142,191.88,191.84,0.71]
[1761819251975,3.26475142,191.87,191.84,0.71]
[1761819252885,3.26475142,191.86,191.84,0.71]
[1761819253487,3.26475142,191.87,191.84,0.71]
[1761819253923,3.26475142,191.87,191.84,5.92258654]
[1761819255305,3.26475142,191.88,191.84,5.92258654]
[1761819255507,3.26475142,191.88,191.84,0.71]
[1761819255701,3.26475142,191.87,191.84,0.71]
[1761819256019,3.26475142,191.86,191.82,0.67]
[1761819256303,3.26475142,191.85,191.82,0.67]
[1761819256510,3.26475142,191.86,191.82,0.67]
[1761819256697,3.26475142,191.83,191.8,0.67]
[1761819257607,21.68342764,191.88,191.8,0.67]
[1761819257608,3.44278202,191.88,191.8,0.67]
[1761819257814,3.26475142,191.87,191.81,3.26475142]
[1761819258310,3.26475142,191.85,191.81,0.67]
[1761819258495,5.21163597,191.88,191.79,5.21400635]
[1761819258496,3.26475142,191.84,191.79,5.21400635]
[1761819258814,3.26475142,191.84,191.8,0.67]
[1761819260011,3.26475142,191.84,191.8,5.88369313]
[1761819260709,8.47743858,191.84,191.8,0.67]
[1761819261043,3.26475142,191.84,191.81,0.67]
[1761819261222,20.592,191.84,191.81,0.67]
[1761819261438,3.26475142,191.85,191.81,0.67]
[1761819262292,8.47718415,191.85,191.81,0.67]
[1761819262508,3.26475142,191.85,191.81,5.88344618]
[1761819262747,3.26475142,191.85,191.82,0.67]
[1761819263596,20.592,191.86,191.8,5.21372414]
[1761819263597,3.26475142,191.84,191.8,5.21372414]
[1761819263793,3.26475142,191.84,191.82,0.67]
[1761819264326,3.26475142,191.85,191.82,0.67]
[1761819265203,20.592,191.86,191.77,0.67]
[1761819265204,3.26475142,191.83,191.77,0.67]
[1761819265505,3.26475142,191.81,191.77,0.67]
[1761819265706,3.26475142,191.82,191.77,0.67]
[1761819266107,3.26475142,191.81,191.77,0.67]
[1761819266302,3.26475142,191.81,191.77,5.88443803]
[1761819266808,3.26475142,191.81,191.78,0.67]
[1761819268102,3.26475142,191.81,191.78,5.88428899]
[1761819269328,23.85675142,191.83,191.79,0.69]
[1761819269823,3.26475142,191.82,191.78,5.21428899]
[1761819270029,3.26475142,191.81,191.78,5.90428899]
[1761819270409,3.26475142,191.81,191.78,0.69]
[1761819271017,3.26475142,191.81,191.78,5.90422677]
[1761819271413,3.26475142,191.82,191.78,5.90422677]
[1761819271612,3.26475142,191.8,191.75,0.2]
[1761819271832,3.26475142,191.8,191.75,0.89]
[1761819272205,3.26475142,191.8,191.76,0.69]
[1761819272821,8.47867962,191.8,191.76,0.69]
[1761819273031,3.26475142,191.79,191.76,0.69]
[1761819275128,3.26475142,191.79,191.76,5.90483971]
[1761819275431,3.26475142,191.79,191.76,0.69]
[1761819276941,3.26475142,191.79,191.76,5.90481613]
[1761819277157,20.592,191.81,191.76,5.90481613]
[1761819277449,3.26475142,191.8,191.77,0.69]
[1761819278142,3.26475142,191.8,191.75,15.88012544]
[1761819278346,21.262,191.81,191.75,0.2]
[1761819278347,0.67,191.79,191.75,0.2]
[1761819278635,33.64557911,191.76,191.75,0.2]
[1761819278836,38.860431,191.76,191.75,0.2]
[1761819279042,20.592,191.76,191.75,0.2]
[1761819280763,3.93475142,191.76,191.75,0.2]
[1761819281564,9.14960331,191.76,191.75,0.2]
[1761819281919,5.88485189,191.76,191.75,0.2]
[1761819282119,23.32058412,191.76,191.75,0.2]
[1761819282338,23.61196501,191.76,191.75,0.2]
[1761819282755,10.5583859,191.76,191.75,0.2]
[1761819282922,23.61196501,191.76,191.75,0.2]
[1761819283337,23.61196501,191.76,191.7,216.97463701]
[1761819283338,20.592,191.73,191.7,216.97463701]
[1761819283527,3.26475142,191.71,191.7,216.97463701]
[1761819283735,20.592,191.72,191.7,216.97463701]
[1761819283918,21.262,191.72,191.7,216.97463701]
[1761819284120,20.592,191.73,191.7,216.97463701]
[1761819284324,3.26475142,191.72,191.7,216.97463701]
[1761819284627,21.262,191.73,191.7,216.97463701]
[1761819284820,20.592,191.72,191.7,222.19110419]
[1761819285059,20.592,191.72,191.71,0.69]
[1761819285363,24.52675142,191.77,191.71,3.95475142]
[1761819285522,23.85675142,191.77,191.72,0.69]
[1761819285939,3.26475142,191.77,191.72,0.69]
[1761819286546,3.26475142,191.77,191.73,5.21566786]
[1761819286929,20.592,191.78,191.74,0.69]
[1761819287124,21.262,191.81,191.74,0.69]
[1761819287367,0.67,191.81,191.74,0.69]
[1761819287575,9.14825168,191.81,191.74,3.95475142]
[1761819287862,20.592,191.8,191.74,3.95475142]
[1761819288250,20.592,191.8,191.74,0.69]
[1761819288449,29.74062821,191.8,191.74,0.69]
[1761819288865,29.74062821,191.8,191.74,5.90533441]
[1761819289049,29.74062821,191.8,191.74,0.69]
[1761819289251,29.74062821,191.8,191.73,5.21563985]
[1761819289252,3.93475142,191.79,191.73,5.21563985]
[1761819289456,20.592,191.8,191.76,3.26475142]
[1761819289662,20.592,191.8,191.75,3.26475142]
[1761819289849,0.67,191.82,191.75,3.26475142]
[1761819290048,3.93475142,191.82,191.76,0.69]
[1761819290666,24.52675142,191.82,191.76,5.90476571]
[1761819291067,13.05357911,191.8,191.7,232.65640173]
[1761819291255,3.26475142,191.78,191.7,220.92938843]
[1761819291552,2.09271341,191.77,191.7,219.75735042]
[1761819291945,0.67,191.76,191.7,219.75735042]
[1761819292767,27.89909506,191.78,191.71,0.69]
[1761819293138,28.56909506,191.78,191.71,0.69]
[1761819293337,21.262,191.78,191.71,2.78271341]
[1761819293737,21.262,191.78,191.72,0.69]
[1761819294465,26.47638836,191.78,191.72,0.69]
[1761819294765,0.67,191.77,191.71,2.09271341]
[1761819295160,0.67,191.77,191.71,2.78271341]
[1761819295765,5.21485189,191.76,191.7,222.19111937]
[1761819296156,5.88485189,191.76,191.7,222.88111937]
[1761819297170,2.09271341,191.74,191.7,216.97463701]
[1761819297367,0.71,191.74,191.7,216.97463701]
[1761819298152,2.09271341,191.75,191.7,217.69463701]
[1761819298352,2.09271341,191.75,191.71,0.72]
[1761819298583,2.09271341,191.75,191.7,216.97463701]
[1761819298584,2.80271341,191.75,191.7,217.69463701]
[1761819298958,5.21539584,191.74,191.7,217.69463701]
[1761819299678,5.21539584,191.74,191.7,216.97463701]
[1761819299880,5.21539584,191.74,191.71,0.72]
[1761819300396,5.21539584,191.74,191.7,216.97463701]
[1761819300551,5.21539584,191.74,191.71,0.72]
[1761819300894,113.18882769,191.78,191.71,2.81271341]
[1761819301177,20.592,191.75,191.71,8.028693]
[1761819301342,20.592,191.75,191.72,0.72]
[1761819301548,22.68471341,191.75,191.7,216.97463701]
[1761819301768,22.68471341,191.75,191.71,0.72]
[1761819301955,23.39471341,191.75,191.71,0.72]
[1761819302157,22.68471341,191.75,191.71,0.72]
[1761819302355,20.592,191.75,191.71,0.72]
[1761819303168,25.80714344,191.75,191.71,0.72]
[1761819304451,20.592,191.75,191.71,5.93616631]
[1761819304952,25.8071772,191.75,191.71,0.72]
[1761819305147,0.71,191.74,191.7,216.97463701]
[1761819305375,0.71,191.74,191.7,217.69463701]
[1761819305676,2.09271341,191.74,191.71,0.72]
[1761819306461,20.592,191.71,191.7,216.97463701]
[1761819306666,22.68471341,191.71,191.7,216.97463701]
[1761819306961,23.39471341,191.71,191.7,216.97463701]
[1761819307164,28.61092539,191.71,191.7,216.97463701]
[1761819308280,26.51821198,191.71,191.7,216.97463701]
[1761819308459,28.61092539,191.71,191.7,216.97463701]
[1761819308775,0.71,191.71,191.7,216.97463701]
[1761819308989,22.68471341,191.71,191.7,216.97463701]
[1761819310278,25.80821198,191.71,191.7,216.97463701]
[1761819310575,27.90092539,191.71,191.7,216.97463701]
[1761819310782,22.68471341,191.71,191.7,216.97463701]
[1761819311167,27.90092539,191.71,191.7,216.97463701]
[1761819311882,22.68471341,191.71,191.7,216.97463701]
[1761819312265,4.078223,191.78,191.7,216.97463701]
[1761819312478,5.92436947,191.78,191.71,0.72]
[1761819312699,2.09271341,191.76,191.71,0.72]
[1761819313271,20.592,191.75,191.71,0.72]
[1761819313554,8.01766054,191.76,191.71,5.93615461]
[1761819313783,20.592,191.75,191.71,5.93615461]
[1761819313984,20.592,191.75,191.72,0.72]
[1761819314282,20.592,191.76,191.72,2.81271341]
[1761819314774,5.213922,191.8,191.73,0.72]
[1761819314979,7.30663541,191.8,191.74,2.09271341]
[1761819315282,20.592,191.76,191.74,2.09271341]
[1761819315462,20.592,191.77,191.72,2.81271341]
[1761819315780,22.68471341,191.76,191.72,0.72]
[1761819316378,20.592,191.76,191.72,0.72]
[1761819316584,20.592,191.76,191.72,2.81271341]
[1761819317086,20.592,191.76,191.73,0.72]
[1761819317974,20.592,191.76,191.73,5.93562522]
[1761819318274,2.09271341,191.75,191.71,0.72]
[1761819318474,0.67,191.75,191.7,216.97463701]
[1761819318663,2.09271341,191.72,191.7,216.97463701]
[1761819318873,2.09271341,191.71,191.7,216.97463701]
[1761819319069,2.09271341,191.72,191.7,216.97463701]
[1761819319268,5.21621198,191.71,191.7,216.97463701]
[1761819319475,7.30869894,191.72,191.7,216.97463701]
[1761819320187,2.09271341,191.73,191.7,216.97463701]
[1761819320566,20.592,191.74,191.7,217.69463701]
[1761819320765,2.09271341,191.73,191.7,217.69463701]
[1761819320972,2.09271341,191.73,191.7,216.97463701]
[1761819321168,2.09271341,191.72,191.7,216.97463701]
[1761819321372,7.30892539,191.71,191.7,216.97463701]
[1761819321790,7.97892539,191.71,191.7,216.97463701]
[1761819322668,17.76775308,191.71,191.7,216.97463701]
[1761819323072,21.19957314,191.71,191.7,216.97463701]
[1761819324066,11.41074545,191.71,191.7,216.97463701]
[1761819324264,7.30892539,191.71,191.7,216.97463701]
[1761819324464,13.70933052,191.73,191.7,217.69463701]
[1761819324465,20.592,191.73,191.7,217.69463701]
[1761819324687,2.09271341,191.73,191.7,217.69463701]
[1761819324869,2.09271341,191.73,191.71,0.72]
[1761819325073,2.09271341,191.73,191.7,216.97463701]
[1761819325270,22.68471341,191.73,191.7,217.69463701]
[1761819325682,2.09271341,191.73,191.7,217.69463701]
[1761819325876,27.90083265,191.72,191.7,216.97463701]
[1761819326064,25.80811924,191.72,191.7,216.97463701]
[1761819326271,27.90083265,191.72,191.7,217.69463701]
[1761819326992,2.09271341,191.71,191.7,217.69463701]
[1761819327206,25.80811924,191.72,191.7,217.69463701]
[1761819327374,2.09271341,191.71,191.7,217.69463701]
[1761819328694,2.09271341,191.71,191.7,216.97463701]
[1761819329198,20.592,191.72,191.7,217.65463701]
[1761819329372,22.68471341,191.72,191.7,217.65463701]
[1761819329688,22.68471341,191.72,191.71,0.68]
[1761819330693,20.592,191.72,191.71,0.68]
[1761819330870,22.68471341,191.72,191.71,0.68]
[1761819331065,22.68471341,191.72,191.7,216.97463701]
[1761819331270,22.68471341,191.72,191.7,217.65463701]
[1761819331889,22.68471341,191.72,191.7,216.97463701]
[1761819332086,5.21466552,191.77,191.71,0.68]
[1761819332395,2.09271341,191.72,191.71,0.68]
[1761819333093,2.09271341,191.72,191.7,216.97463701]
[1761819333094,23.35471341,191.72,191.7,216.97463701]
[1761819333276,23.35471341,191.71,191.7,216.97463701]
[1761819333688,76.79016518,191.71,191.7,216.97463701]
[1761819333894,88.67170628,191.71,191.7,216.97463701]
[1761819334088,93.88791826,191.71,191.7,216.97463701]
[1761819336399,103.98283718,191.71,191.7,77.89427078]
[1761819336697,103.98283718,191.71,191.7,50.47099646]
[1761819336897,103.98283718,191.71,191.7,1e-08]
[1761819337383,110.95686146,191.71,191.7,1e-08]
[1761819337692,102.58600782,191.71,191.7,1e-08]
[1761819338077,104.67872123,191.71,191.7,1e-08]
[1761819338985,102.58600782,191.71,191.7,1e-08]
[1761819339786,52.58600782,191.71,191.7,1e-08]
[1761819341276,35.59703967,191.71,191.7,1e-08]
[1761819341481,37.68975308,191.71,191.7,1e-08]
[1761819341676,25.80821198,191.71,191.7,1e-08]
[1761819341900,27.90092539,191.71,191.7,1e-08]
[1761819342100,5.21621198,191.71,191.7,1e-08]
[1761819342594,7.30892539,191.71,191.7,1e-08]
[1761819343103,2.09271341,191.71,191.7,1e-08]
[1761819343479,22.68471341,191.71,191.7,1e-08]
[1761819343679,20.592,191.71,191.7,1e-08]
[1761819344479,27.90092539,191.71,191.7,1e-08]
[1761819344680,28.57092539,191.71,191.7,1e-08]
[1761819344983,2.09271341,191.72,191.7,1e-08]
[1761819345186,20.592,191.71,191.7,1e-08]
[1761819345501,22.68471341,191.71,191.7,1e-08]
[1761819345906,11.8815411,191.75,191.7,0.68000001]
[1761819346408,20.592,191.75,191.7,0.68000001]
[1761819346707,2.09271341,191.78,191.7,2.77271342]
[1761819346897,5.21430806,191.78,191.71,2.09271341]
[1761819347092,7.30702147,191.78,191.71,2.77271341]
[1761819347293,7.30702147,191.78,191.72,0.68]
[1761819347490,20.592,191.77,191.72,0.68]
[1761819347890,29.23745473,191.77,191.72,5.89589233]
[1761819348093,5.2146584,191.77,191.72,5.89589233]
[1761819348394,22.68471341,191.77,191.73,0.68]
[1761819348591,20.592,191.77,191.73,0.68]
[1761819348801,25.80660234,191.77,191.73,0.68]
[1761819349105,27.89931575,191.77,191.73,0.68]
[1761819349303,25.80660234,191.77,191.73,0.68]